[Event "Titled Tuesday Blitz February 21 Early 2023"]
[White "Sukandar, Irine Kharisma"]
[Black "Gharamian, Tigran"]
[WhiteFideId "7101937"]
[BlackFideId "13301527"]
[WhiteElo "2390"]
[BlackElo "2601"]
[Result "1-0"]
[Round "01"]
[TimeControl "180+2"]
[Date "2023.02.21"]
[WhiteClock "0:01:44"]
[BlackClock "0:00:13"]

1. d4 {[%clk 0:02:59]}  Nf6 {[%clk 0:02:56]} 2. Bf4 {[%clk 0:02:59]}  d5 {[%clk 0:02:53]} 3. e3 {[%clk 0:02:59]}  c5 {[%clk 0:02:47]} 4. Nd2 {[%clk 0:02:59]}  Nc6 {[%clk 0:02:47]} 5. Ngf3 {[%clk 0:02:57]}  Bg4 {[%clk 0:02:43]} 6. c3 {[%clk 0:02:55]}  cxd4 {[%clk 0:02:33]} 7. exd4 {[%clk 0:02:55]}  e6 {[%clk 0:02:33]} 8. Qa4 {[%clk 0:02:55]}  Nd7 {[%clk 0:02:28]} 9. Bb5 {[%clk 0:02:52]}  Qb6 {[%clk 0:02:20]} 10. Ne5 {[%clk 0:02:41]}  Ndxe5 {[%clk 0:02:12]} 11. dxe5 {[%clk 0:02:40]}  Bc5 {[%clk 0:01:56]} 12. O-O {[%clk 0:02:39]}  Bh5 {[%clk 0:01:42]} 13. b4 {[%clk 0:02:35]}  Be7 {[%clk 0:01:40]} 14. c4 {[%clk 0:02:32]}  O-O {[%clk 0:01:29]} 15. c5 {[%clk 0:02:24]}  Qc7 {[%clk 0:01:26]} 16. a3 {[%clk 0:02:21]}  Nd4 {[%clk 0:01:15]} 17. Bd3 {[%clk 0:02:18]}  Bg6 {[%clk 0:01:12]} 18. Bxg6 {[%clk 0:02:12]}  Ne2+ {[%clk 0:01:10]} 19. Kh1 {[%clk 0:02:12]}  Nxf4 {[%clk 0:01:11]} 20. Bc2 {[%clk 0:02:07]}  Qxe5 {[%clk 0:01:09]} 21. Qb3 {[%clk 0:02:06]}  Qg5 {[%clk 0:00:35]} 22. g3 {[%clk 0:02:05]}  Nh3 {[%clk 0:00:29]} 23. f4 {[%clk 0:02:04]}  Qh5 {[%clk 0:00:25]} 24. Qd3 {[%clk 0:01:54]}  Bf6 {[%clk 0:00:22]} 25. g4 {[%clk 0:01:51]}  Qh4 {[%clk 0:00:20]} 26. Nf3 {[%clk 0:01:51]}  Nf2+ {[%clk 0:00:20]} 27. Rxf2 {[%clk 0:01:51]}  Qh3 {[%clk 0:00:16]} 28. Rg1 {[%clk 0:01:45]}  Rae8 {[%clk 0:00:14]} 29. Rg3 {[%clk 0:01:44]}  Qh6 {[%clk 0:00:13]} 30. g5 {[%clk 0:01:44]} 1-0


[Site "https://www.chess.com"]

[Event "Titled Tuesday Blitz February 21 Early 2023"]
[White "Liu, Casper"]
[Black "Jeet, Jain"]
[WhiteFideId "1454153"]
[BlackFideId "5073022"]
[WhiteElo "2278"]
[BlackElo "2199"]
[Result "1/2-1/2"]
[Round "01"]
[TimeControl "180+2"]
[Date "2023.02.21"]
[WhiteClock "0:00:07"]
[BlackClock "0:00:57"]

1. d4 {[%clk 0:01:41]}  d6 {[%clk 0:02:52]} 2. c4 {[%clk 0:01:39]}  Nd7 {[%clk 0:02:50]} 3. Nc3 {[%clk 0:01:38]}  e5 {[%clk 0:02:50]} 4. Nf3 {[%clk 0:01:36]}  Ngf6 {[%clk 0:02:49]} 5. e4 {[%clk 0:01:36]}  g6 {[%clk 0:02:48]} 6. Be3 {[%clk 0:01:36]}  Bg7 {[%clk 0:02:47]} 7. Be2 {[%clk 0:01:36]}  O-O {[%clk 0:02:46]} 8. h3 {[%clk 0:01:34]}  c6 {[%clk 0:02:46]} 9. O-O {[%clk 0:01:33]}  Re8 {[%clk 0:02:46]} 10. Qc2 {[%clk 0:01:26]}  a6 {[%clk 0:02:43]} 11. Rad1 {[%clk 0:01:23]}  Qc7 {[%clk 0:02:43]} 12. Rfe1 {[%clk 0:01:21]}  h6 {[%clk 0:02:42]} 13. Bf1 {[%clk 0:01:21]}  Nf8 {[%clk 0:02:40]} 14. Qc1 {[%clk 0:01:18]}  Kh7 {[%clk 0:02:39]} 15. b4 {[%clk 0:01:10]}  g5 {[%clk 0:02:36]} 16. a4 {[%clk 0:01:00]}  Ng6 {[%clk 0:02:35]} 17. b5 {[%clk 0:00:45]}  axb5 {[%clk 0:02:34]} 18. axb5 {[%clk 0:00:44]}  Nh5 {[%clk 0:02:33]} 19. bxc6 {[%clk 0:00:35]}  bxc6 {[%clk 0:02:33]} 20. d5 {[%clk 0:00:36]}  cxd5 {[%clk 0:02:31]} 21. Nxd5 {[%clk 0:00:31]}  Qc6 {[%clk 0:02:16]} 22. c5 {[%clk 0:00:30]}  dxc5 {[%clk 0:02:11]} 23. Qxc5 {[%clk 0:00:14]}  Qxc5 {[%clk 0:02:09]} 24. Bxc5 {[%clk 0:00:15]}  Ra2 {[%clk 0:02:05]} 25. g3 {[%clk 0:00:15]}  Nf6 {[%clk 0:01:57]} 26. Nxf6+ {[%clk 0:00:13]}  Bxf6 {[%clk 0:01:58]} 27. Bc4 {[%clk 0:00:13]}  Rc2 {[%clk 0:01:56]} 28. Bxf7 {[%clk 0:00:13]}  Rh8 {[%clk 0:01:51]} 29. Rc1 {[%clk 0:00:14]}  Rxc1 {[%clk 0:01:50]} 30. Rxc1 {[%clk 0:00:15]}  Bxh3 {[%clk 0:01:50]} 31. Bd6 {[%clk 0:00:15]}  Bg4 {[%clk 0:01:39]} 32. Bxg6+ {[%clk 0:00:14]}  Kxg6 {[%clk 0:01:39]} 33. Nxe5+ {[%clk 0:00:15]}  Bxe5 {[%clk 0:01:39]} 34. Bxe5 {[%clk 0:00:16]}  Re8 {[%clk 0:01:39]} 35. Rc5 {[%clk 0:00:15]}  Bf3 {[%clk 0:01:37]} 36. Rc6+ {[%clk 0:00:14]}  Kh5 {[%clk 0:01:35]} 37. Bg7 {[%clk 0:00:14]}  Rxe4 {[%clk 0:01:34]} 38. Rxh6+ {[%clk 0:00:14]}  Kg4 {[%clk 0:01:34]} 39. Bc3 {[%clk 0:00:10]}  Rc4 {[%clk 0:01:33]} 40. Bd2 {[%clk 0:00:10]}  Rd4 {[%clk 0:01:30]} 41. Be1 {[%clk 0:00:07]}  Rd1 {[%clk 0:01:19]} 42. Re6 {[%clk 0:00:06]}  Kf5 {[%clk 0:01:14]} 43. Re3 {[%clk 0:00:07]}  g4 {[%clk 0:01:15]} 44. Kf1 {[%clk 0:00:06]}  Rb1 {[%clk 0:01:13]} 45. Re8 {[%clk 0:00:04]}  Kf6 {[%clk 0:01:10]} 46. Re3 {[%clk 0:00:04]}  Rb5 {[%clk 0:01:09]} 47. Bc3+ {[%clk 0:00:04]}  Kf7 {[%clk 0:01:09]} 48. Ke1 {[%clk 0:00:04]}  Rb1+ {[%clk 0:01:07]} 49. Kd2 {[%clk 0:00:05]}  Rf1 {[%clk 0:01:08]} 50. Rxf3+ {[%clk 0:00:03]}  gxf3 {[%clk 0:01:08]} 51. Ke3 {[%clk 0:00:04]}  Rc1 {[%clk 0:01:06]} 52. Bd4 {[%clk 0:00:04]}  Rd1 {[%clk 0:01:05]} 53. Be5 {[%clk 0:00:05]}  Re1+ {[%clk 0:01:03]} 54. Kf4 {[%clk 0:00:05]}  Ke6 {[%clk 0:00:59]} 55. Bd4 {[%clk 0:00:05]}  Rd1 {[%clk 0:00:57]} 56. Be3 {[%clk 0:00:06]}  Rd5 {[%clk 0:00:57]} 57. Kxf3 {[%clk 0:00:06]}  Rb5 {[%clk 0:00:58]} 58. Ke4 {[%clk 0:00:07]}  Rb4+ {[%clk 0:00:58]} 59. Kf3 {[%clk 0:00:07]}  Kf5 {[%clk 0:00:58]} 60. Kg2 {[%clk 0:00:08]}  Kg4 {[%clk 0:00:58]} 61. Bf4 {[%clk 0:00:08]}  Rb3 {[%clk 0:00:58]} 62. Be3 {[%clk 0:00:09]}  Rb2 {[%clk 0:00:57]} 63. Bf4 {[%clk 0:00:09]}  Kf5 {[%clk 0:00:58]} 64. Be3 {[%clk 0:00:10]}  Ke4 {[%clk 0:00:59]} 65. Bf4 {[%clk 0:00:11]}  Kd3 {[%clk 0:00:59]} 66. Be3 {[%clk 0:00:11]}  Ke2 {[%clk 0:00:59]} 67. Ba7 {[%clk 0:00:11]}  Rb3 {[%clk 0:00:59]} 68. Be3 {[%clk 0:00:11]}  Rb7 {[%clk 0:00:59]} 69. Bd4 {[%clk 0:00:11]}  Rf7 {[%clk 0:00:56]} 70. Be3 {[%clk 0:00:12]}  Kd3 {[%clk 0:00:57]} 71. Bf4 {[%clk 0:00:13]}  Ke4 {[%clk 0:00:56]} 72. Be3 {[%clk 0:00:13]}  Rd7 {[%clk 0:00:57]} 73. Bf4 {[%clk 0:00:14]}  Rd3 {[%clk 0:00:56]} 74. Be3 {[%clk 0:00:15]}  Rb3 {[%clk 0:00:56]} 75. Bf4 {[%clk 0:00:15]}  Kf5 {[%clk 0:00:57]} 76. Be3 {[%clk 0:00:16]}  Kg4 {[%clk 0:00:58]} 77. Bf4 {[%clk 0:00:17]}  Rb2 {[%clk 0:00:58]} 78. Be3 {[%clk 0:00:18]}  Kf5 {[%clk 0:00:59]} 79. Bf4 {[%clk 0:00:18]}  Ke4 {[%clk 0:01:00]} 80. Be3 {[%clk 0:00:19]}  Kd3 {[%clk 0:01:01]} 81. Bf4 {[%clk 0:00:20]}  Ra2 {[%clk 0:01:02]} 82. Be3 {[%clk 0:00:21]}  Ke2 {[%clk 0:01:02]} 83. Bf4 {[%clk 0:00:21]}  Ra6 {[%clk 0:01:02]} 84. Be3 {[%clk 0:00:22]}  Re6 {[%clk 0:01:03]} 85. Bf4 {[%clk 0:00:22]}  Rf6 {[%clk 0:01:03]} 86. Be3 {[%clk 0:00:23]}  Rf7 {[%clk 0:01:03]} 87. Bf4 {[%clk 0:00:23]}  Rf6 {[%clk 0:01:03]} 88. Be3 {[%clk 0:00:22]}  Rf3 {[%clk 0:01:04]} 89. g4 {[%clk 0:00:19]}  Rf7 {[%clk 0:01:03]} 90. Kg3 {[%clk 0:00:19]}  Kd3 {[%clk 0:01:03]} 91. g5 {[%clk 0:00:17]}  Ke4 {[%clk 0:01:03]} 92. Kg4 {[%clk 0:00:17]}  Ke5 {[%clk 0:01:01]} 93. f4+ {[%clk 0:00:13]}  Ke6 {[%clk 0:00:59]} 94. g6 {[%clk 0:00:10]}  Rb7 {[%clk 0:00:59]} 95. f5+ {[%clk 0:00:10]}  Ke7 {[%clk 0:00:57]} 96. Kg5 {[%clk 0:00:08]}  Kf8 {[%clk 0:00:58]} 97. f6 {[%clk 0:00:08]}  Kg8 {[%clk 0:00:57]} 98. f7+ {[%clk 0:00:07]}  Rxf7 {[%clk 0:00:56]} 99. gxf7+ {[%clk 0:00:07]}  Kxf7 {[%clk 0:00:57]} 1/2-1/2


[Site "https://www.chess.com"]

[Event "Titled Tuesday Blitz February 21 Early 2023"]
[White "Zaichenko, Daria"]
[Black "WindWhistler11"]
[WhiteFideId "4197453"]
[WhiteElo "2104"]
[BlackElo "2536"]
[Result "0-1"]
[Round "01"]
[TimeControl "180+2"]
[Date "2023.02.21"]
[WhiteClock "0:00:02"]
[BlackClock "0:00:05"]

1. e4 {[%clk 0:02:59]}  e6 {[%clk 0:02:59]} 2. d4 {[%clk 0:02:59]}  d5 {[%clk 0:02:59]} 3. Bd3 {[%clk 0:02:59]}  a6 {[%clk 0:02:57]} 4. c4 {[%clk 0:02:48]}  dxc4 {[%clk 0:02:54]} 5. Bxc4 {[%clk 0:02:48]}  b5 {[%clk 0:02:54]} 6. Bb3 {[%clk 0:02:46]}  Bb7 {[%clk 0:02:54]} 7. f3 {[%clk 0:02:36]}  Bb4+ {[%clk 0:02:38]} 8. Nc3 {[%clk 0:02:34]}  Ne7 {[%clk 0:02:34]} 9. Ne2 {[%clk 0:02:34]}  O-O {[%clk 0:02:31]} 10. O-O {[%clk 0:02:34]}  c5 {[%clk 0:02:29]} 11. dxc5 {[%clk 0:02:29]}  Bxc5+ {[%clk 0:02:28]} 12. Kh1 {[%clk 0:02:29]}  Qb6 {[%clk 0:02:26]} 13. Bf4 {[%clk 0:02:20]}  Nbc6 {[%clk 0:02:23]} 14. a3 {[%clk 0:02:15]}  Rad8 {[%clk 0:02:18]} 15. Qc2 {[%clk 0:02:15]}  Ng6 {[%clk 0:02:11]} 16. Bg3 {[%clk 0:02:14]}  Na5 {[%clk 0:01:55]} 17. Ba2 {[%clk 0:02:06]}  Be3 {[%clk 0:01:44]} 18. Rad1 {[%clk 0:01:51]}  h5 {[%clk 0:01:43]} 19. f4 {[%clk 0:01:33]}  h4 {[%clk 0:01:35]} 20. Bf2 {[%clk 0:01:26]}  Bxf2 {[%clk 0:01:31]} 21. f5 {[%clk 0:01:25]}  Rxd1 {[%clk 0:01:22]} 22. Qxd1 {[%clk 0:01:23]}  Ne5 {[%clk 0:01:23]} 23. Nf4 {[%clk 0:01:19]}  exf5 {[%clk 0:01:13]} 24. exf5 {[%clk 0:01:17]}  Qd4 {[%clk 0:01:07]} 25. Qc2 {[%clk 0:01:05]}  Be3 {[%clk 0:00:56]} 26. Nfd5 {[%clk 0:01:03]}  Nac4 {[%clk 0:00:54]} 27. Ne7+ {[%clk 0:00:57]}  Kh8 {[%clk 0:00:54]} 28. Bb1 {[%clk 0:00:40]}  h3 {[%clk 0:00:49]} 29. Ne4 {[%clk 0:00:26]}  Bxe4 {[%clk 0:00:39]} 30. Qxe4 {[%clk 0:00:26]}  Qxe4 {[%clk 0:00:38]} 31. Bxe4 {[%clk 0:00:26]}  Nd2 {[%clk 0:00:36]} 32. Re1 {[%clk 0:00:25]}  Ng4 {[%clk 0:00:34]} 33. gxh3 {[%clk 0:00:22]}  Nf2+ {[%clk 0:00:19]} 34. Kg2 {[%clk 0:00:20]}  Ndxe4 {[%clk 0:00:17]} 35. Rxe3 {[%clk 0:00:20]}  Rd8 {[%clk 0:00:17]} 36. Rf3 {[%clk 0:00:16]}  Rd2 {[%clk 0:00:12]} 37. Kf1 {[%clk 0:00:16]}  Kh7 {[%clk 0:00:09]} 38. Rf4 {[%clk 0:00:16]}  g6 {[%clk 0:00:09]} 39. f6 {[%clk 0:00:14]}  Kh6 {[%clk 0:00:07]} 40. Ng8+ {[%clk 0:00:11]}  Kg5 {[%clk 0:00:06]} 41. Rf3 {[%clk 0:00:11]}  Kh4 {[%clk 0:00:02]} 42. Rf4+ {[%clk 0:00:10]}  Kg5 {[%clk 0:00:02]} 43. Rf3 {[%clk 0:00:10]}  Nd3 {[%clk 0:00:02]} 44. Kg1 {[%clk 0:00:06]}  Kh5 {[%clk 0:00:01]} 45. Re3 {[%clk 0:00:05]}  Rd1+ {[%clk 0:00:02]} 46. Kg2 {[%clk 0:00:05]}  Rd2+ {[%clk 0:00:02]} 47. Kg1 {[%clk 0:00:05]}  Rd1+ {[%clk 0:00:02]} 48. Kg2 {[%clk 0:00:06]}  Ne1+ {[%clk 0:00:02]} 49. Kf1 {[%clk 0:00:04]}  Nc2+ {[%clk 0:00:02]} 50. Ke2 {[%clk 0:00:04]}  Nxe3 {[%clk 0:00:02]} 51. Kxe3 {[%clk 0:00:05]}  Re1+ {[%clk 0:00:03]} 52. Kf4 {[%clk 0:00:05]}  g5+ {[%clk 0:00:03]} 53. Kf5 {[%clk 0:00:04]}  Rf1+ {[%clk 0:00:03]} 54. Kxe4 {[%clk 0:00:04]}  Rf2 {[%clk 0:00:03]} 55. Ke5 {[%clk 0:00:04]}  Rxh2 {[%clk 0:00:04]} 56. Kd6 {[%clk 0:00:04]}  Re2 {[%clk 0:00:04]} 57. Ne7 {[%clk 0:00:03]}  Kh4 {[%clk 0:00:04]} 58. Nf5+ {[%clk 0:00:02]}  Kxh3 {[%clk 0:00:04]} 59. Nh6 {[%clk 0:00:03]}  g4 {[%clk 0:00:05]} 60. Nxf7 {[%clk 0:00:03]}  g3 {[%clk 0:00:05]} 61. Ng5+ {[%clk 0:00:03]}  Kh2 {[%clk 0:00:05]} 62. f7 {[%clk 0:00:03]}  Rf2 {[%clk 0:00:05]} 63. Ke6 {[%clk 0:00:02]}  g2 {[%clk 0:00:05]} 0-1


[Site "https://www.chess.com"]

[Event "Titled Tuesday Blitz February 21 Early 2023"]
[White "Mamedov, Edgar"]
[Black "Ardila, Oscar Humberto"]
[WhiteFideId "13739980"]
[BlackFideId "4404742"]
[WhiteElo "2193"]
[BlackElo "1982"]
[Result "1-0"]
[Round "01"]
[TimeControl "180+2"]
[Date "2023.02.21"]
[WhiteClock "0:00:21"]
[BlackClock "0:00:01"]

1. d4 {[%clk 0:02:58]}  Nf6 {[%clk 0:02:57]} 2. Bg5 {[%clk 0:02:58]}  e6 {[%clk 0:02:56]} 3. e4 {[%clk 0:02:57]}  Be7 {[%clk 0:02:57]} 4. Bxf6 {[%clk 0:02:53]}  Bxf6 {[%clk 0:02:56]} 5. c3 {[%clk 0:02:53]}  c5 {[%clk 0:02:55]} 6. Nf3 {[%clk 0:02:47]}  cxd4 {[%clk 0:02:55]} 7. cxd4 {[%clk 0:02:47]}  O-O {[%clk 0:02:55]} 8. Nc3 {[%clk 0:02:46]}  Qb6 {[%clk 0:02:53]} 9. Rb1 {[%clk 0:02:41]}  Nc6 {[%clk 0:02:52]} 10. e5 {[%clk 0:02:41]}  Be7 {[%clk 0:02:52]} 11. Bd3 {[%clk 0:02:41]}  Nb4 {[%clk 0:02:41]} 12. O-O {[%clk 0:02:30]}  Nxd3 {[%clk 0:02:40]} 13. Qxd3 {[%clk 0:02:30]}  d6 {[%clk 0:02:37]} 14. Rfd1 {[%clk 0:02:14]}  Bd7 {[%clk 0:02:33]} 15. d5 {[%clk 0:02:11]}  dxe5 {[%clk 0:02:32]} 16. Nxe5 {[%clk 0:02:10]}  Be8 {[%clk 0:02:24]} 17. d6 {[%clk 0:01:45]}  Bf6 {[%clk 0:02:24]} 18. Ng4 {[%clk 0:01:40]}  Bc6 {[%clk 0:02:11]} 19. Nxf6+ {[%clk 0:01:37]}  gxf6 {[%clk 0:02:12]} 20. Ne4 {[%clk 0:01:24]}  Bxe4 {[%clk 0:02:11]} 21. Qxe4 {[%clk 0:01:24]}  f5 {[%clk 0:01:43]} 22. Qf4 {[%clk 0:01:12]}  f6 {[%clk 0:01:20]} 23. Rd3 {[%clk 0:01:00]}  Kh8 {[%clk 0:01:10]} 24. d7 {[%clk 0:00:53]}  Rad8 {[%clk 0:01:05]} 25. Rd6 {[%clk 0:00:48]}  Qb5 {[%clk 0:00:58]} 26. Qd2 {[%clk 0:00:41]}  e5 {[%clk 0:00:48]} 27. Rc1 {[%clk 0:00:38]}  a6 {[%clk 0:00:25]} 28. b3 {[%clk 0:00:34]}  a5 {[%clk 0:00:17]} 29. Rc4 {[%clk 0:00:30]}  b6 {[%clk 0:00:13]} 30. Qh6 {[%clk 0:00:28]}  Rf7 {[%clk 0:00:13]} 31. Rc8 {[%clk 0:00:26]}  Rxd7 {[%clk 0:00:01]} 32. Qxf6+ {[%clk 0:00:21]}  Kg8 {[%clk 0:00:01]} 33. Rxd8+ {[%clk 0:00:21]}  Rxd8 {[%clk 0:00:01]} 34. Rxd8+ {[%clk 0:00:21]} 1-0


[Site "https://www.chess.com"]

[Event "Titled Tuesday Blitz February 21 Early 2023"]
[White "Afanasieva, Alexandra"]
[Black "Karttunen, Mika"]
[WhiteFideId "34126926"]
[BlackFideId "502081"]
[WhiteElo "1857"]
[BlackElo "2490"]
[Result "0-1"]
[Round "01"]
[TimeControl "180+2"]
[Date "2023.02.21"]
[WhiteClock "0:00:03"]
[BlackClock "0:00:16"]

1. e4 {[%clk 0:02:59]}  c5 {[%clk 0:02:58]} 2. Nf3 {[%clk 0:02:59]}  g6 {[%clk 0:02:58]} 3. d4 {[%clk 0:02:56]}  cxd4 {[%clk 0:02:58]} 4. Qxd4 {[%clk 0:02:57]}  Nf6 {[%clk 0:02:58]} 5. Nc3 {[%clk 0:02:47]}  Nc6 {[%clk 0:02:57]} 6. Qa4 {[%clk 0:02:45]}  Bg7 {[%clk 0:02:55]} 7. Bg5 {[%clk 0:02:39]}  O-O {[%clk 0:02:51]} 8. Be2 {[%clk 0:02:31]}  d6 {[%clk 0:02:47]} 9. O-O {[%clk 0:02:27]}  Bd7 {[%clk 0:02:46]} 10. Rad1 {[%clk 0:02:13]}  a6 {[%clk 0:02:42]} 11. Qb3 {[%clk 0:01:49]}  b5 {[%clk 0:02:27]} 12. a4 {[%clk 0:01:43]}  Be6 {[%clk 0:02:19]} 13. Nd5 {[%clk 0:01:40]}  Nxe4 {[%clk 0:01:59]} 14. axb5 {[%clk 0:01:40]}  axb5 {[%clk 0:01:55]} 15. Qxb5 {[%clk 0:01:34]}  Nxg5 {[%clk 0:01:42]} 16. Qxc6 {[%clk 0:01:19]}  Nxf3+ {[%clk 0:01:34]} 17. Bxf3 {[%clk 0:01:19]}  Rc8 {[%clk 0:01:33]} 18. Qa4 {[%clk 0:00:44]}  Bxb2 {[%clk 0:01:32]} 19. Rfe1 {[%clk 0:00:44]}  Re8 {[%clk 0:01:17]} 20. Qb3 {[%clk 0:00:34]}  Bg7 {[%clk 0:01:08]} 21. Rxe6 {[%clk 0:00:31]}  fxe6 {[%clk 0:01:07]} 22. Nf4 {[%clk 0:00:32]}  Kh8 {[%clk 0:00:28]} 23. Qxe6 {[%clk 0:00:18]}  Rc5 {[%clk 0:00:23]} 24. Bd5 {[%clk 0:00:17]}  Qc8 {[%clk 0:00:19]} 25. Qe3 {[%clk 0:00:04]}  Qf5 {[%clk 0:00:17]} 26. Be6 {[%clk 0:00:02]}  Qe5 {[%clk 0:00:16]} 27. Qg3 {[%clk 0:00:01]}  Rf8 {[%clk 0:00:16]} 28. Nxg6+ {[%clk 0:00:01]}  hxg6 {[%clk 0:00:16]} 29. Qh4+ {[%clk 0:00:02]}  Qh5 {[%clk 0:00:16]} 30. Qxe7 {[%clk 0:00:03]}  Re5 {[%clk 0:00:16]} 0-1


[Site "https://www.chess.com"]

[Event "Titled Tuesday Blitz February 21 Early 2023"]
[White "Ismagilov, Damir"]
[Black "Rosh Jain"]
[WhiteFideId "34199982"]
[BlackFideId "25789465"]
[WhiteElo "2156"]
[BlackElo "2248"]
[Result "1-0"]
[Round "01"]
[TimeControl "180+2"]
[Date "2023.02.21"]
[WhiteClock "0:00:43"]
[BlackClock "0:00:06"]

1. e4 {[%clk 0:02:55]}  c5 {[%clk 0:02:57]} 2. Nc3 {[%clk 0:02:49]}  d6 {[%clk 0:02:53]} 3. f4 {[%clk 0:02:49]}  g6 {[%clk 0:02:52]} 4. Nf3 {[%clk 0:02:47]}  Bg7 {[%clk 0:02:52]} 5. g3 {[%clk 0:02:47]}  Bd7 {[%clk 0:02:51]} 6. Bg2 {[%clk 0:02:47]}  Nc6 {[%clk 0:02:51]} 7. O-O {[%clk 0:02:47]}  Nf6 {[%clk 0:02:50]} 8. d3 {[%clk 0:02:47]}  O-O {[%clk 0:02:49]} 9. Kh1 {[%clk 0:02:47]}  a6 {[%clk 0:02:49]} 10. a4 {[%clk 0:02:45]}  Qc7 {[%clk 0:02:48]} 11. Be3 {[%clk 0:02:42]}  Rab8 {[%clk 0:02:35]} 12. Qd2 {[%clk 0:02:38]}  b5 {[%clk 0:02:33]} 13. axb5 {[%clk 0:02:38]}  axb5 {[%clk 0:02:34]} 14. Nd5 {[%clk 0:02:38]}  Nxd5 {[%clk 0:02:34]} 15. exd5 {[%clk 0:02:39]}  Nb4 {[%clk 0:02:23]} 16. c4 {[%clk 0:02:28]}  Bf5 {[%clk 0:02:19]} 17. Ne1 {[%clk 0:02:20]}  bxc4 {[%clk 0:01:51]} 18. dxc4 {[%clk 0:02:21]}  Ra8 {[%clk 0:01:49]} 19. Nf3 {[%clk 0:02:11]}  Bd3 {[%clk 0:01:46]} 20. Rxa8 {[%clk 0:02:09]}  Rxa8 {[%clk 0:01:45]} 21. Rc1 {[%clk 0:02:09]}  Ra2 {[%clk 0:01:42]} 22. Ne1 {[%clk 0:02:08]}  Rxb2 {[%clk 0:01:40]} 23. Qd1 {[%clk 0:02:08]}  Bf5 {[%clk 0:01:27]} 24. Ra1 {[%clk 0:02:04]}  Ra2 {[%clk 0:01:01]} 25. Rxa2 {[%clk 0:01:52]}  Nxa2 {[%clk 0:01:02]} 26. Qa4 {[%clk 0:01:52]}  Nb4 {[%clk 0:00:58]} 27. h3 {[%clk 0:01:41]}  Bd7 {[%clk 0:00:47]} 28. Qa8+ {[%clk 0:01:40]}  Qc8 {[%clk 0:00:47]} 29. Qa7 {[%clk 0:01:40]}  Bf6 {[%clk 0:00:42]} 30. Kh2 {[%clk 0:01:39]}  h5 {[%clk 0:00:39]} 31. Nf3 {[%clk 0:01:38]}  Bf5 {[%clk 0:00:20]} 32. Nd2 {[%clk 0:01:34]}  Bd3 {[%clk 0:00:20]} 33. Be4 {[%clk 0:01:29]}  Bxe4 {[%clk 0:00:20]} 34. Nxe4 {[%clk 0:01:30]}  Qf5 {[%clk 0:00:20]} 35. Nxf6+ {[%clk 0:00:52]}  Qxf6 {[%clk 0:00:19]} 36. Bxc5 {[%clk 0:00:52]}  dxc5 {[%clk 0:00:19]} 37. Qxc5 {[%clk 0:00:53]}  Nd3 {[%clk 0:00:19]} 38. Qe3 {[%clk 0:00:51]}  Nb2 {[%clk 0:00:16]} 39. c5 {[%clk 0:00:50]}  Nc4 {[%clk 0:00:16]} 40. Qd3 {[%clk 0:00:49]}  Qb2+ {[%clk 0:00:15]} 41. Kh1 {[%clk 0:00:48]}  Qc1+ {[%clk 0:00:15]} 42. Kg2 {[%clk 0:00:48]}  Qd2+ {[%clk 0:00:12]} 43. Qxd2 {[%clk 0:00:47]}  Nxd2 {[%clk 0:00:13]} 44. c6 {[%clk 0:00:47]}  Ne4 {[%clk 0:00:12]} 45. Kf3 {[%clk 0:00:48]}  Nd6 {[%clk 0:00:12]} 46. Ke3 {[%clk 0:00:48]}  Kf8 {[%clk 0:00:13]} 47. Kd4 {[%clk 0:00:48]}  Ke8 {[%clk 0:00:13]} 48. Ke5 {[%clk 0:00:48]}  Kd8 {[%clk 0:00:11]} 49. g4 {[%clk 0:00:49]}  hxg4 {[%clk 0:00:11]} 50. hxg4 {[%clk 0:00:49]}  Nc4+ {[%clk 0:00:10]} 51. Kd4 {[%clk 0:00:49]}  Nb6 {[%clk 0:00:10]} 52. Ke5 {[%clk 0:00:48]}  Na8 {[%clk 0:00:10]} 53. d6 {[%clk 0:00:46]}  exd6+ {[%clk 0:00:09]} 54. Kxd6 {[%clk 0:00:47]}  Nc7 {[%clk 0:00:09]} 55. f5 {[%clk 0:00:47]}  Ne8+ {[%clk 0:00:06]} 56. Ke5 {[%clk 0:00:45]}  g5 {[%clk 0:00:05]} 57. f6 {[%clk 0:00:43]}  Kc7 {[%clk 0:00:05]} 58. Kf5 {[%clk 0:00:42]}  Kxc6 {[%clk 0:00:05]} 59. Kxg5 {[%clk 0:00:43]}  Kd6 {[%clk 0:00:06]} 60. Kh6 {[%clk 0:00:43]} 1-0


[Site "https://www.chess.com"]

[Event "Titled Tuesday Blitz February 21 Early 2023"]
[White "Migot, Tangi"]
[Black "Schut, Han"]
[WhiteFideId "662445"]
[BlackFideId "1005561"]
[WhiteElo "2373"]
[BlackElo "2101"]
[Result "1-0"]
[Round "01"]
[TimeControl "180+2"]
[Date "2023.02.21"]
[WhiteClock "0:00:38"]
[BlackClock "0:00:19"]

1. Nf3 {[%clk 0:03:00]}  Nf6 {[%clk 0:02:57]} 2. e3 {[%clk 0:03:01]}  g6 {[%clk 0:02:55]} 3. h4 {[%clk 0:03:01]}  d5 {[%clk 0:02:54]} 4. Be2 {[%clk 0:03:00]}  Bg4 {[%clk 0:02:52]} 5. b3 {[%clk 0:03:00]}  Bg7 {[%clk 0:02:51]} 6. Bb2 {[%clk 0:03:00]}  c5 {[%clk 0:02:51]} 7. Ne5 {[%clk 0:02:58]}  Bxe2 {[%clk 0:02:40]} 8. Qxe2 {[%clk 0:02:59]}  Nbd7 {[%clk 0:02:27]} 9. Nxd7 {[%clk 0:02:58]}  Qxd7 {[%clk 0:02:24]} 10. Nc3 {[%clk 0:02:57]}  O-O {[%clk 0:02:10]} 11. O-O-O {[%clk 0:02:55]}  Rfd8 {[%clk 0:02:05]} 12. d3 {[%clk 0:02:51]}  b5 {[%clk 0:02:03]} 13. e4 {[%clk 0:02:49]}  d4 {[%clk 0:01:49]} 14. Nb1 {[%clk 0:02:44]}  a5 {[%clk 0:01:49]} 15. h5 {[%clk 0:02:29]}  a4 {[%clk 0:01:38]} 16. hxg6 {[%clk 0:02:28]}  fxg6 {[%clk 0:01:37]} 17. e5 {[%clk 0:02:22]}  Nd5 {[%clk 0:01:34]} 18. e6 {[%clk 0:02:11]}  Qd6 {[%clk 0:01:28]} 19. g3 {[%clk 0:02:08]}  Rf8 {[%clk 0:01:08]} 20. f4 {[%clk 0:02:06]}  Rf6 {[%clk 0:01:05]} 21. Nd2 {[%clk 0:01:40]}  Ne3 {[%clk 0:01:01]} 22. Ne4 {[%clk 0:01:39]}  Qxe6 {[%clk 0:00:54]} 23. Nxf6+ {[%clk 0:01:23]}  Qxf6 {[%clk 0:00:53]} 24. Qxe3 {[%clk 0:01:15]}  dxe3 {[%clk 0:00:49]} 25. Bxf6 {[%clk 0:01:16]}  Bxf6 {[%clk 0:00:47]} 26. Kb1 {[%clk 0:01:15]}  axb3 {[%clk 0:00:47]} 27. cxb3 {[%clk 0:01:15]}  Bc3 {[%clk 0:00:44]} 28. Rh2 {[%clk 0:01:13]}  Kf7 {[%clk 0:00:30]} 29. Rc1 {[%clk 0:01:13]}  Bd2 {[%clk 0:00:29]} 30. Rxc5 {[%clk 0:01:11]}  Rd8 {[%clk 0:00:28]} 31. Kc2 {[%clk 0:01:06]}  h5 {[%clk 0:00:28]} 32. Rxd2 {[%clk 0:01:00]}  exd2 {[%clk 0:00:28]} 33. Kxd2 {[%clk 0:01:00]}  Ra8 {[%clk 0:00:26]} 34. Rxb5 {[%clk 0:00:58]}  Rxa2+ {[%clk 0:00:25]} 35. Ke3 {[%clk 0:00:59]}  Rg2 {[%clk 0:00:25]} 36. Kf3 {[%clk 0:00:59]}  Rd2 {[%clk 0:00:25]} 37. Rd5 {[%clk 0:00:52]}  Rb2 {[%clk 0:00:26]} 38. Rb5 {[%clk 0:00:53]}  Rd2 {[%clk 0:00:26]} 39. Ke4 {[%clk 0:00:52]}  Rg2 {[%clk 0:00:26]} 40. b4 {[%clk 0:00:48]}  Rxg3 {[%clk 0:00:26]} 41. Rb8 {[%clk 0:00:46]}  h4 {[%clk 0:00:24]} 42. b5 {[%clk 0:00:43]}  Kg7 {[%clk 0:00:24]} 43. Ra8 {[%clk 0:00:42]}  h3 {[%clk 0:00:22]} 44. Ra1 {[%clk 0:00:42]}  Rg2 {[%clk 0:00:22]} 45. Rh1 {[%clk 0:00:41]}  h2 {[%clk 0:00:22]} 46. Kd5 {[%clk 0:00:40]}  Rb2 {[%clk 0:00:20]} 47. Kc6 {[%clk 0:00:40]}  Kf6 {[%clk 0:00:21]} 48. b6 {[%clk 0:00:40]}  Kf5 {[%clk 0:00:22]} 49. b7 {[%clk 0:00:39]}  Kxf4 {[%clk 0:00:22]} 50. Rxh2 {[%clk 0:00:39]}  Rxh2 {[%clk 0:00:19]} 51. b8=Q+ {[%clk 0:00:38]} 1-0


[Site "https://www.chess.com"]